Cogmind - Beta 13 @@@ ROGUE MODE // 2024.06.29 @ 21:27:47 Player: Xintrosi Result: Destroyed by YY-S1V(R) with Subdweller Beam Cannon Performance ------------- Evolutions (0) 0 Regions Visited (3) 600 Robots Destroyed (32) 160 Value Destroyed (665) 665 Prototype IDs (2) 40 Alien Tech Used (0) 0 Bonus (-8) -8 TOTAL SCORE: 1457 Bonus ------- High Alert Combat Kills 2 Friendly Fire -10 Cogmind --------- Core Integrity 0/250 Matter 286/300 Energy 125/125 System Corruption 2% Temperature Warm (197) Movement Core (500) Ox9 Location -10/Subcaves Parts ------- > --- POWER (1) -------- Light Ion Engine > --- PROPULSION (2) --- (None) > --- UTILITY (2) ------ Large Storage Unit Targeting Computer > --- WEAPON (2) ------- Shotgun Shotgun > --- INVENTORY (15) --- Ion Engine Light Ion Engine Light Treads Light Treads Light Treads Structural Scanner Faulty Experimental Sensor Array Hardened Light Armor Plating Hacking Suite Light Assault Rifle Light Assault Rifle Grenade Launcher Grenade Launcher Rocket Launcher Mining Laser Peak State ------------ > --- POWER ------------ Light Ion Engine > --- PROPULSION ------- Light Treads Light Treads > --- UTILITY ---------- Large Storage Unit Targeting Computer > --- WEAPON ----------- Shotgun Shotgun > --- INVENTORY -------- Ion Engine Light Ion Engine Light Treads Light Treads Light Treads Structural Scanner Experimental Sensor Array Hardened Light Armor Plating Hacking Suite Light Assault Rifle Light Assault Rifle Grenade Launcher Grenade Launcher Rocket Launcher Mining Laser [Rating: 11] Favorites ----------- Power Light Ion Engine Engine Light Ion Engine Propulsion Light Treads Treads Light Treads Utility Targeting Computer Storage Large Storage Unit Processor Targeting Computer Weapon Shotgun Energy Gun Medium Laser Ballistic Gun Shotgun Launcher Grenade Launcher Build | -11 -10 -10 -10 ------- Run | Yrd Mat Min Sub Slots Evolved . | . . . . Power . | . . . . Propulsion . | . . . . Utility . | . . . . Weapon . | . . . . Parts Attached 26 | 6 20 . . Power 6 | 1 5 . . Engine 6 | 1 5 . . Core . | . . . . Reactor . | . . . . Propulsion 5 | 2 3 . . Treads 5 | 2 3 . . Leg . | . . . . Wheel . | . . . . Hover . | . . . . Flight . | . . . . Utility 4 | 1 3 . . Device . | . . . . Storage 3 | 1 2 . . Processor 1 | . 1 . . Hackware . | . . . . Protection . | . . . . Artifact . | . . . . Weapon 11 | 2 9 . . Energy Gun 2 | 1 1 . . Energy Cannon . | . . . . Ballistic Gun 6 | 1 5 . . Ballistic Cannon . | . . . . Launcher 3 | . 3 . . Special Weapon . | . . . . Impact Weapon . | . . . . Slashing Weapon . | . . . . Piercing Weapon . | . . . . Special Melee Weapon . | . . . . Unidentified Prototypes . | . . . . Parts Lost 2 | . . . 2 Power . | . . . . Propulsion 2 | . . . 2 Utility . | . . . . Weapon . | . . . . Highest Loss Streak 2 | . . . 2 To Critical Strikes . | . . . . Average Slot Usage (%) 99 | . 99 100 85 Engine 13 | . 13 14 14 Treads 27 | . 28 28 14 Storage 14 | . 14 14 14 Processor 13 | . 13 14 14 Energy Gun 2 | . 2 . . Ballistic Gun 25 | . 24 28 28 Naked Turns . | . . . . Heaviest Build 29 | 13 29 29 29 Greatest Support 40 | 40 40 40 40 Greatest Overweight (x) . | . . . . Average Overweight (x) . | . . . . Largest Inventory Capacity 15 | 8 15 15 15 Average Capacity 11 | 7 9 15 15 Most Carried 15 | 3 12 15 15 Average Carried 9 | 1 8 14 15 Final Capacity 15 | 8 15 15 15 Final Carried 15 | 3 12 15 15 Class Distribution -------------------- 100% | Mutant Dominant Class ---------------- Mutant | -10/Materials Mutant | -10/Mines Mutant | -10/Subcaves Resources | -11 -10 -10 -10 ----------- Run | Yrd Mat Min Sub Matter Collected 896 | 243 480 165 8 Remotely . | . . . . Salvage Created 763 | . 575 188 . Parts 53 | . 41 12 . Haulers Intercepted 2 | . 2 . . Recyclers Shooed 3 | . 3 . . Parts Field Recycled . | . . . . Retrieved Matter . | . . . . Parts Self-Destructed . | . . . . Prevented . | . . . . Kills | -11 -10 -10 -10 ------- Run | Yrd Mat Min Sub Combat Hostiles Destroyed 24 | . 16 7 1 Guns 15 | . 7 7 1 AOE 9 | . 9 . . Classes Destroyed 8 | . 7 . 1 Worker 1 | . 1 . . Hauler 2 | . 2 . . Recycler 1 | . 1 . . Operator 1 | . 1 . . Watcher 3 | . 3 . . Swarmer 12 | . 9 3 . Grunt 11 | . 7 4 . Subdweller 1 | . . . 1 Best Kill Streak 4 | . 4 4 1 Combat Bots Only 4 | . 3 4 1 Max Kills in Single Turn 3 | . 3 1 1 Gunslinging . | . . . . Exploded 3 | . 3 . . Melee . | . . . . Uniques/NPCs Destroyed . | . . . . Combat | -11 -10 -10 -10 -------- Run | Yrd Mat Min Sub Hostile Shots Fired 66 | . 44 16 6 Missed 17 | . 13 4 . Damage Taken 936 | . 397 162 377 Core 277 | . 87 51 139 Absorbed by Shields . | . . . . Regen/Repaired (Parts) 111 | . 111 . . Core Remaining (%) 100 | 100 . . . Volleys Fired 68 | . 51 13 4 Largest 2 | . 2 2 2 Hottest 70 | . 70 46 46 Shots Fired 127 | . 92 27 8 Gun 117 | . 82 27 8 Cannon . | . . . . Launcher 10 | . 10 . . Special . | . . . . Kinetic 111 | . 76 27 8 Thermal 6 | . 6 . . Explosive 10 | . 10 . . Electromagnetic . | . . . . Robot Hit Streak 16 | . 16 8 4 Robot Miss Streak 5 | . 5 3 2 Penetration Max . | . . . . Secondary Targets 3 | . 2 1 . Max Gunslinging Chain 1 | . 1 1 . Shots Hit Robots 86 | . 60 19 7 Core Hits 60 | . 41 13 6 Critical Kills . | . . . . Critical Parts Destroyed 1 | . . 1 . Critical Strikes 1 | . . 1 . Destroy 1 | . . 1 . Melee Attacks . | . . . . Impact . | . . . . Slashing . | . . . . Piercing . | . . . . Sneak Attacks . | . . . . Combat Hostiles . | . . . . Follow-up Attacks . | . . . . Damage Inflicted 1828 | . 1433 270 125 Guns 1120 | . 725 270 125 Cannons . | . . . . Explosions 708 | . 708 . . Melee . | . . . . Ramming . | . . . . Kinetic 1070 | . 675 270 125 Thermal 50 | . 50 . . Explosive 708 | . 708 . . Electromagnetic . | . . . . Impact . | . . . . Slashing . | . . . . Piercing . | . . . . Highest Corruption 2 | . 2 2 2 Average Corruption 2 | . 2 2 2 Corruption Purged . | . . . . Corruption Blocked . | . . . . Effects 8 | . . 8 . Message Errors 3 | . . 3 . Matter Fused 3 | . . 3 . Heat Flow Errors 1 | . . 1 . Misfires 1 | . . 1 . Overload Shots . | . . . . Overflow Damage 45 | . 45 . . Projectiles . | . . . . Explosions 45 | . 45 . . Melee . | . . . . Knockbacks . | . . . . Impact . | . . . . Kinetic . | . . . . Secondary . | . . . . Self-Inflicted Damage 85 | . 85 . . Shots 4 | . 4 . . Rammed . | . . . . Targets Rammed . | . . . . Kicked . | . . . . Crushed . | . . . . Highest Temperature 254 | . 70 93 254 Average Temperature 31 | . 15 22 221 Received Heat Transfer 546 | . 138 84 324 Siege Activations . | . . . . Robots Corrupted . | . . . . Combat Hostiles . | . . . . Parts Fried . | . . . . Impact Corruptions . | . . . . Robots Melted . | . . . . Combat Hostiles . | . . . . Parts Melted . | . . . . Heat Transferred 148 | . 148 . . Parts Sabotaged . | . . . . Parts Stolen . | . . . . Parts Stripped . | . . . . Power Chain Reactions . | . . . . Alert | -11 -10 -10 -10 ------- Run | Yrd Mat Min Sub Peak Influence 416 | . 416 243 . Initial 58 | . . 58 . Average 171 | . 202 120 . Maximum Alert Level 2 | . 2 1 . Low Security (%) 52 | 100 38 80 . Level 1 46 | . 60 19 . Level 2 . | . 1 . . Level 3 . | . . . . Level 4 . | . . . . Level 5 . | . . . . High Security . | . . . . Max Security . | . . . . Squads Dispatched 4 | . 3 1 . Investigation 1 | . 1 . . Extermination . | . . . . Reinforcement 2 | . 2 . . Assault 1 | . . 1 . Garrison . | . . . . Intercept . | . . . . Searches Triggered . | . . . . Construction Impeded . | . . . . Haulers Reinforced . | . . . . Active Scanning Responses . | . . . . Cargo Convoy Interrupts . | . . . . Stealth | -11 -10 -10 -10 --------- Run | Yrd Mat Min Sub Distress Signals 3 | . 3 . . Communications Jammed . | . . . . Distress Signals . | . . . . Times Spotted 30 | . 22 6 2 Peak Tracking Total 6 | . 6 2 2 Tactical Retreats . | . . . . Traps | -11 -10 -10 -10 ------- Run | Yrd Mat Min Sub Traps Triggered 3 | . 3 . . Indirectly . | . . . . Trap Hack Attempts . | . . . . Triggered . | . . . . Disarmed . | . . . . Reprogrammed . | . . . . Reused . | . . . . Traps Extracted . | . . . . Installed . | . . . . Triggered . | . . . . Machines | -11 -10 -10 -10 ---------- Run | Yrd Mat Min Sub Machines Disabled 3 | . 3 . . Max in Single Turn 2 | . 2 . . Machines Repaired . | . . . . Machines Dismantled . | . . . . Machines Sabotaged . | . . . . Overloaded Fab Kills . | . . . . Hacking | -11 -10 -10 -10 --------- Run | Yrd Mat Min Sub Machines Accessed 9 | . 9 . . Terminals 6 | . 6 . . Fabricators . | . . . . Repair Stations 1 | . 1 . . Recycling Units 2 | . 2 . . Scanalyzers . | . . . . Garrison Access . | . . . . Total Hacks 29 | . 29 . . Successful 15 | . 15 . . Failed 14 | . 14 . . Catastrophic . | . . . . Database Lockouts . | . . . . Manual 15 | . 15 . . Terminals 20 | . 20 . . Fabricators . | . . . . Repair Stations 5 | . 5 . . Recycling Units 4 | . 4 . . Scanalyzers . | . . . . Garrison Access . | . . . . Terminal Hacks 3 | . 3 . . Part Schematic 1 | . 1 . . Prototype ID Bank 1 | . 1 . . Registered Components 1 | . 1 . . Fabricator Hacks . | . . . . Repair Station Hacks 4 | . 4 . . Scan Component 2 | . 2 . . Repair 2 | . 2 . . Recycling Unit Hacks 3 | . 3 . . Retrieve Components 3 | . 3 . . Scanalyzer . | . . . . Garrison Access Hacks . | . . . . Unauthorized Hacks 5 | . 5 . . Terminals 5 | . 5 . . Botnet 5 | . 5 . . Fabricators . | . . . . Repair Stations . | . . . . Recycling Units . | . . . . Scanalyzers . | . . . . Garrison Access . | . . . . Data Cores Recovered . | . . . . Used . | . . . . Hacking Detections 7 | . 7 . . Full Trace Events . | . . . . Feedback Events . | . . . . Feedback Blocked . | . . . . Robot Schematics Acquired . | . . . . Robots Built . | . . . . Authchips . | . . . . Time . | . . . . Total Robot Build Rating . | . . . . Part Schematics Acquired 1 | . 1 . . Parts Built . | . . . . Authchips . | . . . . Time . | . . . . Total Part Build Rating . | . . . . Parts Repaired 2 | . 2 . . Time 52 | . 52 . . Parts Recycled . | . . . . Recycled Matter . | . . . . Retrieved Matter . | . . . . Retrieved Components 10 | . 10 . . Parts Scanalyzed . | . . . . Part Schematics Acquired . | . . . . Parts Damaged . | . . . . Bothacking | -11 -10 -10 -10 ------------ Run | Yrd Mat Min Sub Used RIF Installer . | . . . . Robots Hacked . | . . . . Non-combat . | . . . . Combat . | . . . . Robot Hacks Applied . | . . . . Relay Couplers Released . | . . . . Fabnet Peak Effective % . | . . . . Robots Rewired . | . . . . Allies Hacked . | . . . . Hacks Repelled . | . . . . Allies | -11 -10 -10 -10 -------- Run | Yrd Mat Min Sub Total Allies 4 | . . 4 . Largest Group 4 | . . 4 4 Highest-Rated Group 71 | . . 71 71 Highest-Rated Ally 31 | . . 31 31 Total Orders . | . . . . Ally Attacks 7 | . . . 7 Total Damage 76 | . . . 76 Kills . | . . . . Allies Corrupted . | . . . . Allies Melted . | . . . . Intel | -11 -10 -10 -10 ------- Run | Yrd Mat Min Sub Robot Analysis Total . | . . . . Derelict Logs Recovered 2 | . . 2 . Drone Launches . | . . . . Drone Recoveries . | . . . . Exploration | -11 -10 -10 -10 ------------- Run | Yrd Mat Min Sub Turns Passed 2172 | 82 1449 622 19 Spaces Moved 1185 | 46 781 354 4 Core 2 | 2 . . . Treads 1183 | 44 781 354 4 Legs . | . . . . Wheels . | . . . . Hover . | . . . . Flight . | . . . . Fastest Speed 50 | 50 160 160 160 Average Speed 159 | 155 160 160 160 Slowest Speed 160 | 160 160 160 160 Overloaded Moves . | . . . . Propulsion Burnouts . | . . . . Robots Hopped . | . . . . Cave-ins Triggered . | . . . . Exploration Rate (%) 45 | 4 96 77 3 Regions Visited 3 Branch Regions 2 Pre-discovered Areas . | . . . . Known Exits Taken . | . . . . Unknown Exits Taken 3 | 1 1 1 . Scrap Searched 1 | . . 1 . Spaces Dug . | . . . . Terrain Destroyed 54 | . 54 . . Melee . | . . . . Projectile . | . . . . AOE 54 | . 54 . . Terrain Rammed . | . . . . Walls Destroyed . | . . . . Machines Disabled . | . . . . Actions | -11 -10 -10 -10 --------- Run | Yrd Mat Min Sub Total 1341 | 54 895 384 8 Wait 31 | . 18 13 . Move 1182 | 45 780 353 4 Hop . | . . . . Pick Up 20 | 3 13 4 . Fast Attach 12 | 6 6 . . Attach 1 | . 1 . . Detach 1 | . 1 . . Swap 13 | . 13 . . Drop 13 | . 12 1 . Fire 68 | . 51 13 4 Melee . | . . . . Ram . | . . . . Kick . | . . . . Crush . | . . . . Escape Stasis . | . . . . Rewire . | . . . . Trap . | . . . . Miscellaneous . | . . . . Route ------- -11/Scrapyard -10/Materials (discovered 4 exits: [*Mat x3] / [*Min]) -10/Mines (discovered 2 exits: [*Mat] / [*Sub]) -10/Subcaves History --------- Turn | Location | Event 10 | -11/Scrapyard | Discovered new exit (range 15) 83 | -11/Scrapyard | Entered Materials 314 | -10/Materials | Build established: Mutant 346 | -10/Materials | Discovered new exit (range 6) 388 | -10/Materials | Discovered new exit (range 15) 1250 | -10/Materials | Discovered new exit (range 12) 1350 | -10/Materials | Discovered new exit (range 12) 1404 | -10/Materials | Repaired Lgt. Treads 1445 | -10/Materials | Repaired Lgt. Treads 1532 | -10/Materials | Entered Mines 1713 | -10/Mines | Learned Materials non-interactive machine intel 1817 | -10/Mines | Core integrity fell below 50% 1832 | -10/Mines | Received a Rocket Launcher from a helpful Derelict 1895 | -10/Mines | Found a damaged Exp. Sensor Array with a note attached 1898 | -10/Mines | Found Prototype Device 1930 | -10/Mines | Discovered new exit (range 10) 1951 | -10/Mines | Assisted by bots powering up and referring to "LRC-V3" 2091 | -10/Mines | Met a Derelict testing a Signal Generator 2147 | -10/Mines | Discovered new exit (range 5) 2154 | -10/Mines | Entered Subcaves 2154 | -10/Subcaves | Accompanied by 4 allies 2161 | -10/Subcaves | Core integrity fell below 20% 2173 | -10/Subcaves | Destroyed by YY-S1V(R) with Subdweller Beam Cannon Last Messages --------------- 02139_ Acquired 17 matter. 02142_ U-05 Engineer lays Concrete. 02143_ U-05 Engineer builds a Wall. 02147_ U-05 Engineer lays Concrete. 02147_ EXIT=FOUND 02151_ T-07 Excavator is excavating. 02154_ U-05 Engineer lays Concrete. LOCATION=UNKNOWN AMBIENT_HEAT=-10 GOAL=ESCAPE 02158_ Mercenary 1a destroyed. 02161_ Trooper 1a destroyed. 02162_ Acquired 8 matter. 02164_ Trooper 1b destroyed. 02164_ NQ-84A(g) destroyed. 02167_ Subatomizers dissect the Aluminum Leg. 02167_ Lgt. Treads destroyed. 02167_ GW-AWF(R) destroyed. 02169_ Lgt. Treads destroyed. 02169_ Critical hit (Meltdown: +270). Map ----- +----------------------------------------------------+ | ?????????????????????????????????????????????????? | | ?????????????????????????????????????????????????? | | ?????????????????????????????????????????????????? | | ?????????????????????????????????????????????????? | | ?????????????????????????????????????????????????? | | ?????????????????????????????????????????????????? | | ?????????????????????????????????????????????????? | | ?????????????????????????????????????????????????? | | ?????????????????????????????????????????????????? | | ?????????????????????????????????????????????????? | | ?????????????????????????????????????????????????? | | ?????????????????????????????????????????????????? | | ?????????????????????????????????????????????????? | | ??????????????????????????????????# ????????????? | | ???????????????????????????????### ????????????? | | ?????????? ?????????????????? ????????????? | | ?????????? ??????????????? ???????????? | | ?????????? ???????????### ????????????? | | ????????? ########## ??????????????? | | ????????? ;; #???????????????? | | ????????? ##??????????????? | | ????????????# #??????????????? | | ?????????????# = #?????????????? | | ??????????????# % % ;## ?????????? | | ??????????????# ###; #?????????????????? | | ???????????????????# @ ;#??????????????????? | | ???????????????????## R #????????????? | | ????????????????????# ! ?????????? | | ??????????????????? ###?????????? | | ????????????????? ###???????????? | | ??????????????? ## ######### ##?????????????? | | ?????????????# ???####?????????####??????????????? | | ?????????????????????????????????????????????????? | | ?????????????????????????????????????????????????? | | ?????????????????????????????????????????????????? | | ?????????????????????????????????????????????????? | | ?????????????????????????????????????????????????? | | ?????????????????????????????????????????????????? | | ?????????????????????????????????????????????????? | | ?????????????????????????????????????????????????? | | ?????????????????????????????????????????????????? | | ?????????????????????????????????????????????????? | | ?????????????????????????????????????????????????? | | ?????????????????????????????????????????????????? | | ?????????????????????????????????????????????????? | | ?????????????????????????????????????????????????? | | ?????????????????????????????????????????????????? | | ?????????????????????????????????????????????????? | | ?????????????????????????????????????????????????? | | ?????????????????????????????????????????????????? | +----------------------------------------------------+ Best States ------------- Heat Dissipation 25 Energy Generation 10 Energy Capacity 250 Matter Stores 300 Matter Capacity 300 Sight Range 16 Terrain Scan Density 10 Evasion (%) 40 Targeting Accuracy 5 Recoil Reduction 2 Item Schematics ----------------- Huge Storage Unit | -10/Materials | Hacked Robot Schematics ------------------ None Fabricated ------------ Nothing Alien Tech Used ----------------- None Achievements -------------- None Challenges ------------ None Game ------ Seed DerelictImprovedPlating Manual? 0 Play Time 00:18:29 Cumulative 49.6 hours Start 2024.06.29 @ 21:09:03 End 2024.06.29 @ 21:27:47 Sessions 1 Manual Loads 0 Difficulty Rogue Special Mode None Game No. 23 Rogue 23 Adventurer 0 Explorer 0 Win Type - Total 0 Types 0/0/0/0/0/0/0/0/0 Lore% 27 Gallery% 35 Achievement% 33 Wizard Run 0 Options --------- Layout 0 ASCII 0 Keyboard 1 Movement Numpad Keybinds 0 Fullscreen 2 Font 18/SmallcapsGlow Map View 76x50 Zoom Use 0% Tactical HUD 1 Map Filters NONE Filters NONE Steam 1 RUN: c1f56d80-6153-458a-9250-1f5a410b3f20